[Event "December 19 Early 2023"]
[Site "https://www.chess.com"]
[Date "2023.12.19"]
[Round "1"]
[White "Sadykov, Ramil"]
[Black "Pogorelskikh, Sofia"]
[Result "1-0"]
[Board "177"]
[TimeControl "180+1"]
[WhiteFideId "24113590"]
[BlackFideId "44164548"]
[WhiteElo "2245"]
[BlackElo "2031"]
[WhiteTeam "FID"]
[BlackTeam "SRB"]
[WhiteClock "0:00:41"]
[BlackClock "0:00:01"]

1. d4 {[%clk 0:02:54]}  Nf6 {[%clk 0:02:57]} 2. Nc3 {[%clk 0:02:54]}  g6 {[%clk 0:02:54]} 3. e4 {[%clk 0:02:54]}  d6 {[%clk 0:02:52]} 4. Be3 {[%clk 0:02:54]}  Bg7 {[%clk 0:02:52]} 5. Qd2 {[%clk 0:02:53]}  c6 {[%clk 0:02:41]} 6. Bh6 {[%clk 0:02:44]}  Bxh6 {[%clk 0:02:01]} 7. Qxh6 {[%clk 0:02:45]}  Qa5 {[%clk 0:01:55]} 8. O-O-O {[%clk 0:02:35]}  b5 {[%clk 0:01:48]} 9. e5 {[%clk 0:02:35]}  Ng4 {[%clk 0:01:39]} 10. Qg7 {[%clk 0:01:57]}  Rf8 {[%clk 0:01:38]} 11. exd6 {[%clk 0:01:48]}  b4 {[%clk 0:01:30]} 12. dxe7 {[%clk 0:01:41]}  Kxe7 {[%clk 0:01:29]} 13. Re1+ {[%clk 0:01:24]}  Be6 {[%clk 0:01:28]} 14. Rxe6+ {[%clk 0:01:23]}  Kxe6 {[%clk 0:01:21]} 15. Qxf8 {[%clk 0:01:23]}  Qg5+ {[%clk 0:01:05]} 16. Kb1 {[%clk 0:01:17]}  Nf6 {[%clk 0:00:05]} 17. Nf3 {[%clk 0:01:05]}  Qa5 {[%clk 0:00:02]} 18. Bc4+ {[%clk 0:01:03]}  Nd5 {[%clk 0:00:02]} 19. Re1+ {[%clk 0:00:51]}  Kf6 {[%clk 0:00:02]} 20. Qh8+ {[%clk 0:00:41]}  Kf5 {[%clk 0:00:01]} 21. Qe5+ {[%clk 0:00:42]}  Kg4 {[%clk 0:00:01]} 22. h3# {[%clk 0:00:41]} 1-0

[Event "December 19 Early 2023"]
[Site "https://www.chess.com"]
[Date "2023.12.19"]
[Round "1"]
[White "Guimaraes, Wagner Peixoto"]
[Black "Janaszak, Dawid"]
[Result "0-1"]
[Board "178"]
[TimeControl "180+1"]
[WhiteFideId "2100940"]
[BlackFideId "1119206"]
[WhiteElo "2140"]
[BlackElo "2218"]
[WhiteTeam "BRA"]
[BlackTeam "POL"]
[WhiteClock "0:00:00"]
[BlackClock "0:00:52"]

1. Nf3 {[%clk 0:03:00]}  g6 {[%clk 0:02:58]} 2. d4 {[%clk 0:02:59]}  Bg7 {[%clk 0:02:58]} 3. e4 {[%clk 0:03:00]}  d6 {[%clk 0:02:52]} 4. Nc3 {[%clk 0:02:59]}  Nf6 {[%clk 0:02:51]} 5. h3 {[%clk 0:02:58]}  O-O {[%clk 0:02:51]} 6. Be3 {[%clk 0:02:58]}  c6 {[%clk 0:02:51]} 7. a4 {[%clk 0:02:57]}  Nbd7 {[%clk 0:02:49]} 8. Be2 {[%clk 0:02:56]}  e5 {[%clk 0:02:50]} 9. dxe5 {[%clk 0:02:56]}  dxe5 {[%clk 0:02:49]} 10. Qd6 {[%clk 0:02:55]}  Re8 {[%clk 0:02:48]} 11. O-O {[%clk 0:02:52]}  Bf8 {[%clk 0:02:48]} 12. Qd2 {[%clk 0:02:52]}  Qc7 {[%clk 0:02:48]} 13. Rad1 {[%clk 0:02:47]}  Nc5 {[%clk 0:02:46]} 14. Bd3 {[%clk 0:02:27]}  Nh5 {[%clk 0:02:43]} 15. Kh2 {[%clk 0:02:18]}  Nxd3 {[%clk 0:02:39]} 16. Qxd3 {[%clk 0:02:13]}  b6 {[%clk 0:02:28]} 17. Rfe1 {[%clk 0:02:04]}  Bb7 {[%clk 0:02:21]} 18. Qd7 {[%clk 0:02:01]}  Rac8 {[%clk 0:02:21]} 19. Qxc7 {[%clk 0:02:01]}  Rxc7 {[%clk 0:02:21]} 20. Nd2 {[%clk 0:01:57]}  Bb4 {[%clk 0:02:15]} 21. Nc4 {[%clk 0:01:52]}  Bxc3 {[%clk 0:02:12]} 22. bxc3 {[%clk 0:01:53]}  Kg7 {[%clk 0:02:04]} 23. g3 {[%clk 0:01:41]}  Ba6 {[%clk 0:01:58]} 24. Nd6 {[%clk 0:01:00]}  Ree7 {[%clk 0:01:56]} 25. a5 {[%clk 0:00:53]}  b5 {[%clk 0:01:42]} 26. Bc5 {[%clk 0:00:50]}  Re6 {[%clk 0:01:35]} 27. Rd2 {[%clk 0:00:38]}  Nf6 {[%clk 0:01:35]} 28. f3 {[%clk 0:00:36]}  Nd7 {[%clk 0:01:34]} 29. Ba3 {[%clk 0:00:30]}  Nf8 {[%clk 0:01:20]} 30. Red1 {[%clk 0:00:27]}  h6 {[%clk 0:01:19]} 31. Bc5 {[%clk 0:00:27]}  Kg8 {[%clk 0:01:17]} 32. Ba3 {[%clk 0:00:21]}  Nh7 {[%clk 0:01:16]} 33. h4 {[%clk 0:00:20]}  h5 {[%clk 0:01:13]} 34. c4 {[%clk 0:00:18]}  bxc4 {[%clk 0:01:11]} 35. Bc5 {[%clk 0:00:14]}  c3 {[%clk 0:01:06]} 36. Rf2 {[%clk 0:00:13]}  Rd7 {[%clk 0:01:04]} 37. f4 {[%clk 0:00:10]}  Nf6 {[%clk 0:01:02]} 38. Rf3 {[%clk 0:00:08]}  Nxe4 {[%clk 0:00:58]} 39. Nxe4 {[%clk 0:00:07]}  Rxd1 {[%clk 0:00:59]} 40. fxe5 {[%clk 0:00:06]}  Rxe5 {[%clk 0:00:55]} 41. Nf6+ {[%clk 0:00:06]}  Kg7 {[%clk 0:00:53]} 42. Bxa7 {[%clk 0:00:03]}  Rd2+ {[%clk 0:00:52]} 43. Kg1 {[%clk 0:00:00]}  Re1+ {[%clk 0:00:52]} 0-1

[Event "December 19 Early 2023"]
[Site "https://www.chess.com"]
[Date "2023.12.19"]
[Round "1"]
[White "Masague Artero, Guerau"]
[Black "Player, Edmund C"]
[Result "1-0"]
[Board "179"]
[TimeControl "180+1"]
[WhiteFideId "32098952"]
[BlackFideId "406520"]
[WhiteElo "2253"]
[BlackElo "2015"]
[WhiteTeam "ESP"]
[BlackTeam "ENG"]
[WhiteClock "0:00:05"]
[BlackClock "0:00:00"]

1. Nf3 {[%clk 0:03:00]}  d5 {[%clk 0:02:58]} 2. e3 {[%clk 0:03:01]}  g6 {[%clk 0:02:55]} 3. d4 {[%clk 0:03:00]}  Bg7 {[%clk 0:02:55]} 4. b4 {[%clk 0:03:00]}  Nf6 {[%clk 0:02:54]} 5. Bb2 {[%clk 0:03:00]}  O-O {[%clk 0:02:52]} 6. Nbd2 {[%clk 0:02:59]}  a5 {[%clk 0:02:52]} 7. b5 {[%clk 0:02:59]}  a4 {[%clk 0:02:52]} 8. Ba3 {[%clk 0:02:57]}  c6 {[%clk 0:02:29]} 9. Rb1 {[%clk 0:02:47]}  Bf5 {[%clk 0:02:18]} 10. Ne5 {[%clk 0:02:45]}  Ne4 {[%clk 0:02:06]} 11. Bb4 {[%clk 0:01:55]}  cxb5 {[%clk 0:01:53]} 12. Bxb5 {[%clk 0:01:56]}  Na6 {[%clk 0:01:47]} 13. Nxe4 {[%clk 0:01:33]}  Nxb4 {[%clk 0:01:20]} 14. Rxb4 {[%clk 0:01:19]}  Bxe4 {[%clk 0:00:56]} 15. O-O {[%clk 0:01:04]}  Qd6 {[%clk 0:00:49]} 16. Rxa4 {[%clk 0:00:54]}  Rxa4 {[%clk 0:00:35]} 17. Bxa4 {[%clk 0:00:55]}  Bxe5 {[%clk 0:00:35]} 18. dxe5 {[%clk 0:00:54]}  Qxe5 {[%clk 0:00:36]} 19. Qd2 {[%clk 0:00:55]}  Rc8 {[%clk 0:00:26]} 20. Bb3 {[%clk 0:00:54]}  h5 {[%clk 0:00:19]} 21. f3 {[%clk 0:00:54]}  Bf5 {[%clk 0:00:16]} 22. Rd1 {[%clk 0:00:31]}  Rc5 {[%clk 0:00:14]} 23. h3 {[%clk 0:00:20]}  h4 {[%clk 0:00:13]} 24. Qd4 {[%clk 0:00:20]}  Qd6 {[%clk 0:00:04]} 25. Qxh4 {[%clk 0:00:17]}  Bxc2 {[%clk 0:00:04]} 26. Rd2 {[%clk 0:00:11]}  Bxb3 {[%clk 0:00:03]} 27. axb3 {[%clk 0:00:12]}  Rc3 {[%clk 0:00:03]} 28. Kf2 {[%clk 0:00:08]}  Rxb3 {[%clk 0:00:03]} 29. Rc2 {[%clk 0:00:08]}  Kg7 {[%clk 0:00:00]} 30. Qd4+ {[%clk 0:00:05]} 1-0

[Event "December 19 Early 2023"]
[Site "https://www.chess.com"]
[Date "2023.12.19"]
[Round "1"]
[White "Thorfinnsson, Bragi"]
[Black "Rodriguez Santiago, Jaime"]
[Result "1-0"]
[Board "181"]
[TimeControl "180+1"]
[WhiteFideId "2300958"]
[BlackFideId "3100898"]
[WhiteElo "2325"]
[BlackElo "2025"]
[WhiteTeam "ISL"]
[BlackTeam "PUR"]
[WhiteClock "0:00:35"]
[BlackClock "0:00:19"]

1. e4 {[%clk 0:03:00]}  c6 {[%clk 0:02:59]} 2. d4 {[%clk 0:02:58]}  d5 {[%clk 0:02:59]} 3. exd5 {[%clk 0:02:58]}  cxd5 {[%clk 0:02:59]} 4. Nf3 {[%clk 0:02:57]}  Nc6 {[%clk 0:02:57]} 5. Ne5 {[%clk 0:02:52]}  Nxe5 {[%clk 0:02:52]} 6. dxe5 {[%clk 0:02:53]}  a6 {[%clk 0:02:51]} 7. Bd3 {[%clk 0:02:49]}  g6 {[%clk 0:02:47]} 8. O-O {[%clk 0:02:44]}  Bg7 {[%clk 0:02:45]} 9. Re1 {[%clk 0:02:44]}  e6 {[%clk 0:02:42]} 10. Nd2 {[%clk 0:02:40]}  Ne7 {[%clk 0:02:42]} 11. Nf3 {[%clk 0:02:32]}  h6 {[%clk 0:02:39]} 12. b3 {[%clk 0:02:17]}  O-O {[%clk 0:02:31]} 13. a4 {[%clk 0:02:01]}  b6 {[%clk 0:02:24]} 14. Ba3 {[%clk 0:01:54]}  Re8 {[%clk 0:02:19]} 15. Qe2 {[%clk 0:01:33]}  Bb7 {[%clk 0:02:17]} 16. Rad1 {[%clk 0:01:29]}  Nc6 {[%clk 0:02:02]} 17. h4 {[%clk 0:01:18]}  b5 {[%clk 0:01:28]} 18. h5 {[%clk 0:01:11]}  g5 {[%clk 0:01:26]} 19. axb5 {[%clk 0:01:00]}  axb5 {[%clk 0:01:25]} 20. Bd6 {[%clk 0:01:00]}  f5 {[%clk 0:01:04]} 21. exf6 {[%clk 0:00:51]}  Qxd6 {[%clk 0:01:02]} 22. fxg7 {[%clk 0:00:51]}  Kxg7 {[%clk 0:01:02]} 23. Bxb5 {[%clk 0:00:49]}  g4 {[%clk 0:00:48]} 24. Ne5 {[%clk 0:00:39]}  Nxe5 {[%clk 0:00:33]} 25. Bxe8 {[%clk 0:00:39]}  Rxe8 {[%clk 0:00:20]} 26. Qxe5+ {[%clk 0:00:37]}  Qxe5 {[%clk 0:00:21]} 27. Rxe5 {[%clk 0:00:37]}  Kf6 {[%clk 0:00:22]} 28. Rde1 {[%clk 0:00:36]}  Bc8 {[%clk 0:00:19]} 29. Rxd5 {[%clk 0:00:35]} 1-0

[Event "December 19 Early 2023"]
[Site "https://www.chess.com"]
[Date "2023.12.19"]
[Round "1"]
[White "Obon Temprano, Sergi"]
[Black "Rojas Alarcon, Julian Antonio"]
[Result "0-1"]
[Board "186"]
[TimeControl "180+1"]
[WhiteFideId "2226545"]
[BlackFideId "5107407"]
[WhiteElo "2135"]
[BlackElo "2340"]
[WhiteTeam "ESP"]
[BlackTeam "MEX"]
[WhiteClock "0:00:02"]
[BlackClock "0:00:08"]

1. d4 {[%clk 0:03:00]}  Nf6 {[%clk 0:02:58]} 2. Nf3 {[%clk 0:03:00]}  g6 {[%clk 0:02:58]} 3. c3 {[%clk 0:03:01]}  Bg7 {[%clk 0:02:57]} 4. Bg5 {[%clk 0:03:01]}  O-O {[%clk 0:02:56]} 5. Nbd2 {[%clk 0:03:00]}  d6 {[%clk 0:02:56]} 6. e4 {[%clk 0:03:00]}  Nbd7 {[%clk 0:02:56]} 7. Bc4 {[%clk 0:02:59]}  e5 {[%clk 0:02:54]} 8. dxe5 {[%clk 0:02:58]}  dxe5 {[%clk 0:02:52]} 9. O-O {[%clk 0:02:58]}  c6 {[%clk 0:02:45]} 10. h3 {[%clk 0:02:58]}  Qc7 {[%clk 0:02:43]} 11. Qe2 {[%clk 0:02:54]}  b5 {[%clk 0:02:37]} 12. Bb3 {[%clk 0:02:53]}  Nc5 {[%clk 0:02:34]} 13. Rfd1 {[%clk 0:02:51]}  a5 {[%clk 0:02:33]} 14. a4 {[%clk 0:02:49]}  bxa4 {[%clk 0:01:43]} 15. Bxa4 {[%clk 0:02:47]}  Ba6 {[%clk 0:01:43]} 16. Qe3 {[%clk 0:02:30]}  Nxa4 {[%clk 0:01:19]} 17. Rxa4 {[%clk 0:02:30]}  Rfb8 {[%clk 0:01:19]} 18. Rb1 {[%clk 0:02:20]}  Nh5 {[%clk 0:01:16]} 19. b4 {[%clk 0:02:15]}  h6 {[%clk 0:01:15]} 20. Bxh6 {[%clk 0:01:58]}  Bxh6 {[%clk 0:01:04]} 21. Qxh6 {[%clk 0:01:57]}  Bd3 {[%clk 0:01:05]} 22. Rba1 {[%clk 0:01:51]}  c5 {[%clk 0:00:57]} 23. Rxa5 {[%clk 0:01:43]}  Rxa5 {[%clk 0:00:57]} 24. bxa5 {[%clk 0:01:43]}  Ra8 {[%clk 0:00:57]} 25. Ng5 {[%clk 0:01:36]}  Nf6 {[%clk 0:00:56]} 26. Ndf3 {[%clk 0:01:25]}  Bxe4 {[%clk 0:00:47]} 27. Nxe4 {[%clk 0:01:21]}  Nxe4 {[%clk 0:00:48]} 28. Qe3 {[%clk 0:01:20]}  f5 {[%clk 0:00:47]} 29. a6 {[%clk 0:01:18]}  Qb6 {[%clk 0:00:46]} 30. Nxe5 {[%clk 0:00:58]}  Rxa6 {[%clk 0:00:45]} 31. Rxa6 {[%clk 0:00:57]}  Qxa6 {[%clk 0:00:46]} 32. Qh6 {[%clk 0:00:45]}  Nxc3 {[%clk 0:00:31]} 33. Nxg6 {[%clk 0:00:44]}  Qf6 {[%clk 0:00:30]} 34. Qh5 {[%clk 0:00:38]}  Nd5 {[%clk 0:00:27]} 35. Nh4 {[%clk 0:00:32]}  Ne7 {[%clk 0:00:24]} 36. Nf3 {[%clk 0:00:21]}  c4 {[%clk 0:00:23]} 37. Ne1 {[%clk 0:00:17]}  c3 {[%clk 0:00:22]} 38. Qe2 {[%clk 0:00:16]}  Kf7 {[%clk 0:00:21]} 39. g3 {[%clk 0:00:16]}  Qd4 {[%clk 0:00:20]} 40. h4 {[%clk 0:00:16]}  Ng6 {[%clk 0:00:20]} 41. Qd3 {[%clk 0:00:16]}  Qe5 {[%clk 0:00:16]} 42. Nc2 {[%clk 0:00:16]}  Ne7 {[%clk 0:00:16]} 43. Ne3 {[%clk 0:00:15]}  Kg6 {[%clk 0:00:15]} 44. g4 {[%clk 0:00:14]}  Kf6 {[%clk 0:00:10]} 45. gxf5 {[%clk 0:00:14]}  Qc5 {[%clk 0:00:05]} 46. Ng4+ {[%clk 0:00:12]}  Kf7 {[%clk 0:00:06]} 47. Ne3 {[%clk 0:00:10]}  Nc6 {[%clk 0:00:04]} 48. h5 {[%clk 0:00:10]}  Ne5 {[%clk 0:00:05]} 49. Qe4 {[%clk 0:00:10]}  Kg7 {[%clk 0:00:02]} 50. Qh4 {[%clk 0:00:08]}  Kh7 {[%clk 0:00:01]} 51. Qf6 {[%clk 0:00:07]}  Nf3+ {[%clk 0:00:01]} 52. Kg2 {[%clk 0:00:07]}  Ne1+ {[%clk 0:00:01]} 53. Kg3 {[%clk 0:00:07]}  c2 {[%clk 0:00:02]} 54. Nxc2 {[%clk 0:00:07]}  Nxc2 {[%clk 0:00:03]} 55. Qg6+ {[%clk 0:00:07]}  Kh8 {[%clk 0:00:03]} 56. f6 {[%clk 0:00:08]}  Qc7+ {[%clk 0:00:03]} 57. f4 {[%clk 0:00:07]}  Nd4 {[%clk 0:00:04]} 58. h6 {[%clk 0:00:06]}  Ne6 {[%clk 0:00:04]} 59. Kg4 {[%clk 0:00:06]}  Qxf4+ {[%clk 0:00:04]} 60. Kh5 {[%clk 0:00:06]}  Qe5+ {[%clk 0:00:05]} 61. Kg4 {[%clk 0:00:06]}  Qd4+ {[%clk 0:00:05]} 62. Kh5 {[%clk 0:00:06]}  Nf4+ {[%clk 0:00:05]} 63. Kg5 {[%clk 0:00:06]}  Nxg6 {[%clk 0:00:06]} 64. Kxg6 {[%clk 0:00:07]}  Qd7 {[%clk 0:00:06]} 65. f7 {[%clk 0:00:07]}  Qe7 {[%clk 0:00:07]} 66. h7 {[%clk 0:00:07]}  Qf8 {[%clk 0:00:07]} 67. Kf6 {[%clk 0:00:02]}  Kxh7 {[%clk 0:00:08]} 0-1

[Event "December 19 Early 2023"]
[Site "https://www.chess.com"]
[Date "2023.12.19"]
[Round "1"]
[White "Kokoszczynski, Jan"]
[Black "Barwinska, Ewa"]
[Result "1-0"]
[Board "187"]
[TimeControl "180+1"]
[WhiteFideId "1174460"]
[BlackFideId "21833761"]
[WhiteElo "2266"]
[BlackElo "1879"]
[WhiteTeam "POL"]
[BlackTeam "POL"]
[WhiteClock "0:00:05"]
[BlackClock "0:00:00"]

1. Nf3 {[%clk 0:02:52]}  c5 {[%clk 0:02:58]} 2. c4 {[%clk 0:02:52]}  Nc6 {[%clk 0:02:54]} 3. g3 {[%clk 0:02:52]}  g6 {[%clk 0:02:52]} 4. Bg2 {[%clk 0:02:50]}  Bg7 {[%clk 0:02:52]} 5. O-O {[%clk 0:02:49]}  Nh6 {[%clk 0:02:50]} 6. Nc3 {[%clk 0:02:34]}  Nf5 {[%clk 0:02:49]} 7. b3 {[%clk 0:02:32]}  O-O {[%clk 0:02:47]} 8. Bb2 {[%clk 0:02:32]}  e6 {[%clk 0:02:47]} 9. e3 {[%clk 0:02:28]}  d5 {[%clk 0:02:46]} 10. cxd5 {[%clk 0:01:59]}  exd5 {[%clk 0:02:47]} 11. Rc1 {[%clk 0:01:59]}  d4 {[%clk 0:02:24]} 12. Na4 {[%clk 0:01:53]}  b6 {[%clk 0:01:55]} 13. exd4 {[%clk 0:01:52]}  Ba6 {[%clk 0:01:46]} 14. Re1 {[%clk 0:01:52]}  Ncxd4 {[%clk 0:01:38]} 15. g4 {[%clk 0:01:34]}  Nxf3+ {[%clk 0:01:25]} 16. Qxf3 {[%clk 0:01:35]}  Bxb2 {[%clk 0:01:04]} 17. Nxb2 {[%clk 0:01:35]}  Qxd2 {[%clk 0:01:02]} 18. gxf5 {[%clk 0:01:21]}  Qxb2 {[%clk 0:01:02]} 19. f6 {[%clk 0:01:20]}  Rae8 {[%clk 0:00:56]} 20. Qf4 {[%clk 0:01:08]}  Rxe1+ {[%clk 0:00:45]} 21. Rxe1 {[%clk 0:01:08]}  Rd8 {[%clk 0:00:46]} 22. Qd6 {[%clk 0:00:37]}  Qd4 {[%clk 0:00:36]} 23. Bd5 {[%clk 0:00:17]}  Rf8 {[%clk 0:00:25]} 24. Re7 {[%clk 0:00:11]}  Qg4+ {[%clk 0:00:10]} 25. Kh1 {[%clk 0:00:12]}  Qd1+ {[%clk 0:00:10]} 26. Kg2 {[%clk 0:00:12]}  Bf1+ {[%clk 0:00:07]} 27. Kg3 {[%clk 0:00:10]}  Qd3+ {[%clk 0:00:07]} 28. f3 {[%clk 0:00:10]}  Qf5 {[%clk 0:00:03]} 29. Bxf7+ {[%clk 0:00:08]}  Kh8 {[%clk 0:00:04]} 30. Re5 {[%clk 0:00:05]}  Qh3+ {[%clk 0:00:04]} 31. Kf2 {[%clk 0:00:05]}  Qg2+ {[%clk 0:00:05]} 32. Ke3 {[%clk 0:00:05]}  Qe2+ {[%clk 0:00:05]} 33. Kf4 {[%clk 0:00:05]}  Qxh2+ {[%clk 0:00:03]} 34. Ke3 {[%clk 0:00:05]}  Qe2+ {[%clk 0:00:03]} 35. Kf4 {[%clk 0:00:06]}  Qh2+ {[%clk 0:00:04]} 36. Ke4 {[%clk 0:00:03]}  Qe2+ {[%clk 0:00:03]} 37. Kd5 {[%clk 0:00:03]}  Qd3+ {[%clk 0:00:03]} 38. Kc6 {[%clk 0:00:03]}  Qxd6+ {[%clk 0:00:03]} 39. Kxd6 {[%clk 0:00:04]}  Bb5 {[%clk 0:00:02]} 40. Ke7 {[%clk 0:00:04]}  Rc8 {[%clk 0:00:01]} 41. Be6 {[%clk 0:00:04]}  Rc7+ {[%clk 0:00:02]} 42. Kd6 {[%clk 0:00:05]}  Rc8 {[%clk 0:00:02]} 43. Bxc8 {[%clk 0:00:05]}  Kg8 {[%clk 0:00:02]} 44. Be6+ {[%clk 0:00:05]}  Kf8 {[%clk 0:00:00]} 45. Bc4 {[%clk 0:00:05]} 1-0

[Event "December 19 Early 2023"]
[Site "https://www.chess.com"]
[Date "2023.12.19"]
[Round "1"]
[White "Fishchuk, Vladyslav"]
[Black "Golubenko, Valentina"]
[Result "1-0"]
[Board "189"]
[TimeControl "180+1"]
[WhiteFideId "34122117"]
[BlackFideId "4501993"]
[WhiteElo "2055"]
[BlackElo "2126"]
[WhiteTeam "UKR"]
[BlackTeam "CRO"]
[WhiteClock "0:00:29"]
[BlackClock "0:00:16"]

1. Nc3 {[%clk 0:03:00]}  d5 {[%clk 0:02:58]} 2. e4 {[%clk 0:03:00]}  d4 {[%clk 0:02:58]} 3. Nce2 {[%clk 0:02:54]}  e5 {[%clk 0:02:58]} 4. Ng3 {[%clk 0:02:47]}  c5 {[%clk 0:02:57]} 5. Bc4 {[%clk 0:02:45]}  Nf6 {[%clk 0:02:54]} 6. Nf3 {[%clk 0:02:43]}  a6 {[%clk 0:02:52]} 7. Ng5 {[%clk 0:02:33]}  Be6 {[%clk 0:02:43]} 8. Nxe6 {[%clk 0:02:25]}  fxe6 {[%clk 0:02:43]} 9. Bxe6 {[%clk 0:02:25]}  Qd6 {[%clk 0:02:37]} 10. Bb3 {[%clk 0:02:22]}  b5 {[%clk 0:02:35]} 11. d3 {[%clk 0:02:22]}  Nbd7 {[%clk 0:02:28]} 12. a4 {[%clk 0:02:10]}  b4 {[%clk 0:02:24]} 13. O-O {[%clk 0:02:08]}  a5 {[%clk 0:02:23]} 14. f4 {[%clk 0:01:59]}  O-O-O {[%clk 0:02:21]} 15. Nf5 {[%clk 0:01:51]}  Qb6 {[%clk 0:02:01]} 16. fxe5 {[%clk 0:01:50]}  Nxe5 {[%clk 0:02:01]} 17. Bf4 {[%clk 0:01:49]}  Ng6 {[%clk 0:01:49]} 18. Bg3 {[%clk 0:01:45]}  h5 {[%clk 0:01:41]} 19. Bf7 {[%clk 0:01:21]}  Ng4 {[%clk 0:01:24]} 20. c3 {[%clk 0:01:12]}  Ne7 {[%clk 0:01:10]} 21. cxd4 {[%clk 0:01:08]}  Nxf5 {[%clk 0:01:07]} 22. Rxf5 {[%clk 0:01:07]}  Ne3 {[%clk 0:01:00]} 23. Qf3 {[%clk 0:00:54]}  Nxf5 {[%clk 0:00:48]} 24. Qxf5+ {[%clk 0:00:54]}  Kb7 {[%clk 0:00:47]} 25. Bd5+ {[%clk 0:00:52]}  Rxd5 {[%clk 0:00:25]} 26. Qxd5+ {[%clk 0:00:51]}  Qc6 {[%clk 0:00:25]} 27. Qxc6+ {[%clk 0:00:47]}  Kxc6 {[%clk 0:00:26]} 28. d5+ {[%clk 0:00:47]}  Kd7 {[%clk 0:00:26]} 29. b3 {[%clk 0:00:48]}  Bd6 {[%clk 0:00:26]} 30. Rf1 {[%clk 0:00:46]}  h4 {[%clk 0:00:21]} 31. Bxd6 {[%clk 0:00:45]}  Kxd6 {[%clk 0:00:21]} 32. Rf7 {[%clk 0:00:46]}  Ke5 {[%clk 0:00:21]} 33. Kf2 {[%clk 0:00:39]}  Rg8 {[%clk 0:00:17]} 34. Ke3 {[%clk 0:00:37]}  g5 {[%clk 0:00:17]} 35. Rc7 {[%clk 0:00:30]}  Kd6 {[%clk 0:00:16]} 36. Rc6+ {[%clk 0:00:30]}  Ke5 {[%clk 0:00:16]} 37. Re6# {[%clk 0:00:29]} 1-0

[Event "December 19 Early 2023"]
[Site "https://www.chess.com"]
[Date "2023.12.19"]
[Round "1"]
[White "Al-Tarboush, Ward"]
[Black "Deveci, Huseyin Said"]
[Result "1-0"]
[Board "191"]
[TimeControl "180+1"]
[WhiteFideId "7601450"]
[BlackFideId "26322455"]
[WhiteElo "2278"]
[BlackElo "1954"]
[WhiteTeam "NOR"]
[BlackTeam "TUR"]
[WhiteClock "0:00:02"]
[BlackClock "0:00:04"]

1. e4 {[%clk 0:03:00]}  c5 {[%clk 0:02:55]} 2. Nf3 {[%clk 0:03:00]}  e6 {[%clk 0:02:55]} 3. d4 {[%clk 0:03:00]}  cxd4 {[%clk 0:02:56]} 4. Nxd4 {[%clk 0:03:00]}  a6 {[%clk 0:02:57]} 5. Bd3 {[%clk 0:03:00]}  Bc5 {[%clk 0:02:56]} 6. Nb3 {[%clk 0:03:00]}  Ba7 {[%clk 0:02:56]} 7. Qe2 {[%clk 0:03:00]}  Nc6 {[%clk 0:02:55]} 8. Be3 {[%clk 0:03:00]}  Nf6 {[%clk 0:02:54]} 9. Nc3 {[%clk 0:02:59]}  O-O {[%clk 0:02:53]} 10. Bxa7 {[%clk 0:02:58]}  Rxa7 {[%clk 0:02:53]} 11. g4 {[%clk 0:02:59]}  d5 {[%clk 0:02:52]} 12. e5 {[%clk 0:02:58]}  Nd7 {[%clk 0:02:52]} 13. O-O-O {[%clk 0:02:53]}  Ndxe5 {[%clk 0:02:51]} 14. f4 {[%clk 0:02:47]}  Nxd3+ {[%clk 0:02:51]} 15. Rxd3 {[%clk 0:02:48]}  b5 {[%clk 0:02:50]} 16. Rh3 {[%clk 0:02:47]}  g6 {[%clk 0:02:49]} 17. g5 {[%clk 0:02:34]}  e5 {[%clk 0:02:45]} 18. Rd3 {[%clk 0:02:34]}  d4 {[%clk 0:02:41]} 19. Ne4 {[%clk 0:02:33]}  Bf5 {[%clk 0:02:38]} 20. Nf6+ {[%clk 0:02:32]}  Kg7 {[%clk 0:02:38]} 21. Rd2 {[%clk 0:02:23]}  exf4 {[%clk 0:02:32]} 22. Qf2 {[%clk 0:02:23]}  d3 {[%clk 0:02:27]} 23. Qxf4 {[%clk 0:02:17]}  Qc7 {[%clk 0:02:23]} 24. Qe3 {[%clk 0:02:07]}  Nb4 {[%clk 0:02:17]} 25. c3 {[%clk 0:02:01]}  Nxa2+ {[%clk 0:02:14]} 26. Kb1 {[%clk 0:02:01]}  Nxc3+ {[%clk 0:02:14]} 27. bxc3 {[%clk 0:02:02]}  Qxc3 {[%clk 0:02:14]} 28. Ka2 {[%clk 0:01:50]}  Be6 {[%clk 0:01:51]} 29. Rb1 {[%clk 0:01:50]}  Bc4 {[%clk 0:01:28]} 30. Ne4 {[%clk 0:01:36]}  Qa5+ {[%clk 0:01:19]} 31. Kb2 {[%clk 0:01:33]}  Qc7 {[%clk 0:01:19]} 32. Qd4+ {[%clk 0:01:28]}  f6 {[%clk 0:01:19]} 33. Nxf6 {[%clk 0:01:20]}  Rd8 {[%clk 0:00:24]} 34. Qc3 {[%clk 0:01:07]}  Kf8 {[%clk 0:00:18]} 35. Rf2 {[%clk 0:01:03]}  Bf7 {[%clk 0:00:03]} 36. Nxh7+ {[%clk 0:01:00]}  Kg8 {[%clk 0:00:04]} 37. Nf6+ {[%clk 0:00:59]}  Kf8 {[%clk 0:00:04]} 38. Nc5 {[%clk 0:00:37]}  b4 {[%clk 0:00:02]} 39. Ncd7+ {[%clk 0:00:11]}  Rxd7 {[%clk 0:00:02]} 40. Nxd7+ {[%clk 0:00:11]}  Qxd7 {[%clk 0:00:02]} 41. Qh8+ {[%clk 0:00:11]}  Ke7 {[%clk 0:00:02]} 42. Re1+ {[%clk 0:00:10]}  Kd6 {[%clk 0:00:02]} 43. Qe5+ {[%clk 0:00:08]}  Kc6 {[%clk 0:00:03]} 44. Qf6+ {[%clk 0:00:08]}  Kb5 {[%clk 0:00:03]} 45. Re5+ {[%clk 0:00:07]}  Ka4 {[%clk 0:00:03]} 46. Rc5 {[%clk 0:00:03]}  d2 {[%clk 0:00:03]} 47. Rf1 {[%clk 0:00:02]}  d1=Q {[%clk 0:00:03]} 48. Rxd1 {[%clk 0:00:02]}  Qxd1 {[%clk 0:00:04]} 49. Qc6# {[%clk 0:00:02]} 1-0